[Event "XTX Markets London Masters 2024"]
[Site "London"]
[Date "2024.11.30"]
[Round "3.29"]
[White "Merriman, James"]
[Black "Balaji, Aaravamudhan"]
[Result "0-1"]
[ECO "A65"]
[WhiteElo "2084"]
[BlackElo "2377"]
[Annotator "TA"]
[PlyCount "116"]
[EventDate "2024.11.28"]
[EventType "swiss"]
[EventCountry "ENG"]
[SourceTitle "playchess.com"]
[Source "ChessBase"]
[SourceQuality "1"]
[TimeControl "40/5400+30:1800+30"]

{[%evp 24,116,0,0,5,0,0,0,0,6,10,0,0,0,-21,-45,31,27,10,34,43,26,49,63,79,72,149,139,143,112,99,88,213,204,262,272,254,171,181,201,199,195,169,167,155,154,282,284,443,431,543,557,569,562,529,493,522,540,513,541,532,475,581,580,598,579,584,599,575,339,337,302,304,329,337,337,333,324,304,192,172,186,157,110,110,61,61,58,61,68,69,76,68,-29982,-29983]} 1. d4 {[%emt 0:00:03]} Nf6 {[%emt 0:12:48]} 2. c4 {[%emt 0:00:08]} g6 {[%emt 0:00:02]} 3. f3 {[%emt 0:00:13]} Bg7 {[%emt 0:00:05]} 4. e4 {[%emt 0:00:05]} d6 {[%emt 0:00:02]} 5. Nc3 {[%emt 0:00:21]} O-O {[%emt 0:00:08]} 6. Bg5 {[%emt 0:00:16]} c5 {[%emt 0:00:41]} 7. d5 {[%emt 0:00:13]} Qa5 {[%emt 0:00:51]} 8. Qd2 {[%emt 0:01:55]} a6 {[%emt 0:02:43]} 9. a4 {[%emt 0:04:15]} e6 {[%emt 0:00:50]} 10. Ra3 {[%emt 0:02:19]} exd5 {[%emt 0:05:05]} 11. cxd5 {[%emt 0:00:41]} Nbd7 {[%emt 0:00:23]} 12. Nh3 {[%emt 0:07:30]} Ne5 {[%emt 0:04:27]} 13. Nf2 {[%emt 0:00:11]} Nh5 {[%emt 0:00:02]} 14. Be2 {[%emt 0:15:38]} f6 {[%emt 0:00:32] Against f4} 15. Be3 {[%emt 0:05:51]} f5 {[%emt 0:00:08] ...f4 would now be deadly.} 16. f4 {[%emt 0:07:27]} Ng4 {[%emt 0:00:47]} 17. Nxg4 {[%emt 0:02:08]} fxg4 {[%emt 0:00:03]} 18. O-O {[%emt 0:01:55]} Qb4 {[%emt 0:06:39]} 19. Bd3 {[%emt 0:07:46]} Bd4 {[%emt 0:04:14]} (19... g3 $1 $15) 20. g3 $14 {[%emt 0:04:38]} Bxe3+ {[%emt 0:07:54]} 21. Qxe3 {[%emt 0:00:01]} Qxb2 {[%emt 0:00:13]} 22. Rfa1 {[%emt 0:00:51]} Qb6 {[%emt 0:02:11][%cal Og6g5]} 23. Bc4 {[%emt 0:03:37][%mdl 1024] White has compensation.} Bd7 {[%emt 0:11:47]} 24. e5 {[%emt 0:01:30][%cal Be4e5,Be5e6][%mdl 32]} Bf5 {[%emt 0:07:18]} ({Black should play} 24... Ng7) 25. Rb3 $16 {[%emt 0:06:51]} Qc7 {[%emt 0:00:43]} 26. Ne4 {[%emt 0:01:56]} Bxe4 {[%emt 0:09:50]} 27. Qxe4 {[%emt 0:00:02]} Rae8 {[%emt 0:00:55]} (27... Ng7 $16) 28. Rab1 $18 {[%emt 0:01:48]} Rf7 {[%emt 0:10:50][%cal Bf8f7,Bf7g7,Bg7b7,Bb7b4][%mdl 32]} 29. e6 {[%emt 0:09:26]} Rg7 {[%emt 0:01:28]} 30. Rxb7 {[%emt 0:01:28]} Qxb7 {[%emt 0:01:24]} 31. Rxb7 {[%emt 0:00:01]} Rxb7 {[%emt 0:00:02]} 32. Bxa6 {[%emt 0:00:30]} Nf6 {[%emt 0:03:11]} 33. Qc2 {[%emt 0:01:24]} Rb4 {[%emt 0:00:36]} 34. Bb5 {[%emt 0:14:32]} Rb8 {[%emt 0:03:51]} (34... Re7 $16 {might work better.}) 35. e7 {[%emt 0:00:00]} Kf7 {[%emt 0:01:44]} (35... Ra8 $142 36. Kg2 Kf7) 36. Qe2 {[%emt 0:00:00]} Ne8 {[%emt 0:03:05]} 37. Qe6+ {[%emt 0:00:00]} Kg7 {[%emt 0:00:02]} 38. Qxg4 {[%emt 0:00:00]} c4 {[%emt 0:01:24]} 39. Bxe8 {[%emt 0:00:00]} Rxe8 {[%emt 0:00:30][%mdl 4096] Endgame KQ-KRR} 40. Qd7 $1 {[%emt 0:00:00][%csl LRd6,LRe8]} Rbb8 {[%emt 0:00:30]} 41. Qxd6 {[%emt 0:30:17]} c3 {[%emt 0:04:09]} 42. Qe5+ {[%emt 0:00:00]} Kf7 {[%emt 0:00:43]} 43. Qxc3 {[%emt 0:00:00]} Rxe7 {[%emt 0:02:59]} 44. d6 {[%emt 0:00:00]} Rd7 {[%emt 0:03:03]} 45. Qc4+ {[%emt 0:00:00]} Kf8 {[%emt 0:05:35]} 46. Qd4 {[%emt 0:00:00]} Rbd8 {[%emt 0:00:36]} 47. Qh8+ {[%emt 0:00:00]} Kf7 {[%emt 0:00:03]} 48. Qxh7+ {[%emt 0:00:00]} Kf6 {[%emt 0:00:04]} 49. Qh4+ {[%emt 0:07:13]} Kf7 {[%emt 0:00:36]} 50. a5 {[%emt 0:00:00] And now a6 would win.} (50. Qh7+ Kf6 51. Qh4+ Kg7 $18) 50... Rxd6 {[%emt 0:00:51]} 51. a6 {[%emt 0:00:00]} Ra8 {[%emt 0:01:08]} 52. Qh7+ {[%emt 0:00:00]} Kf6 {[%emt 0:00:17]} 53. a7 {[%emt 0:00:00]} (53. h4 $142 Raxa6 54. Qg8) 53... Ra6 $16 {[%emt 0:02:22] [#]} 54. f5 {[%emt 0:00:00]} Ra1+ $14 {[%emt 0:01:04]} 55. Kg2 {[%emt 0:00:00]} gxf5 {[%emt 0:01:25]} 56. Qh6+ {[%emt 0:00:00]} Kf7 {[%emt 0:00:16]} 57. Qf4 {[%emt 0:00:00]} Ra2+ {[%emt 0:01:40]} 58. Kh3 $2 {[%emt 0:00:00][%mdl 8192]} (58. Kf1 $14 Ra1+ 59. Ke2 Ra2+ 60. Kd1 Rd8+ 61. Kc1 Rxa7 62. Qxf5+ Ke8 63. Qh5+ Rf7 64. g4) 58... Rh8+ {[%emt 0:00:18]} ({Inferior is} 58... R2xa7 59. Qxf5+ Kg8 60. Qe6+ Kf8 61. Qd6+ Kf7 62. Qd5+ Kf8 63. g4 $16) 0-1

[Event "XTX Markets London Masters 2024"]
[Site "London"]
[Date "2024.11.30"]
[Round "3.30"]
[White "Petrov, Vladimir Sergeev"]
[Black "Patel, Zain"]
[Result "1-0"]
[ECO "B15"]
[WhiteElo "2349"]
[BlackElo "2083"]
[Annotator "TA"]
[PlyCount "171"]
[EventDate "2024.11.28"]
[EventType "swiss"]
[EventCountry "ENG"]
[SourceTitle "playchess.com"]
[Source "ChessBase"]
[SourceQuality "1"]
[TimeControl "40/5400+30:1800+30"]

{[%evp 14,171,22,20,25,27,43,47,46,35,49,49,58,50,60,60,44,20,16,31,37,39,51,29,46,26,16,-39,-3,-3,-2,-21,-15,-35,-28,-34,10,15,10,11,18,21,25,31,26,37,25,15,10,9,11,-11,0,0,12,-3,0,0,-1,-7,0,0,0,-5,0,0,0,-72,-8,-3,0,0,0,-11,0,0,0,0,0,0,0,0,0,0,0,0,0,0,0,0,0,0,0,0,0,0,0,8,8,0,0,0,0,6,139,138,818,810,803,803,749,749,1220,547,483,457,1417,1402,1402,1395,1161,611,10129,8137,10199,10199,6722,6889,4669,2413,29962,29963,29959,29961,29966,29952,8365,5787,12583,6378,1754,3678,12758,12758,5712,5624,29984,29985,29985,29986,29985,29987,29987,29988,29988,29989,29990,29991,29991,29992]} 1. e4 {[%emt 0:00:02]} c6 {[%emt 0:06:50]} 2. d4 {[%emt 0:00:04]} d5 {[%emt 0:00:08]} 3. Nd2 {[%emt 0:00:04]} dxe4 {[%emt 0:02:29]} 4. Nxe4 {[%emt 0:00:02]} Nf6 {[%emt 0:02:06]} 5. Nxf6+ {[%emt 0:00:07]} exf6 {[%emt 0:00:06]} 6. c3 {[%emt 0:00:06]} Bd6 {[%emt 0:01:53]} 7. Bd3 {[%emt 0:00:08]} O-O {[%emt 0:01:24]} 8. Qc2 {[%emt 0:00:27] Active counter play!} Re8+ {[%emt 0:01:12]} 9. Ne2 {[%emt 0:00:04]} h5 {[%emt 0:00:04]} 10. O-O {[%emt 0:00:22]} Qc7 {[%emt 0:04:16] White is slightly better.} 11. h3 {[%emt 0:08:23]} Nd7 {[%emt 0:07:05]} 12. Re1 {[%emt 0:05:41]} c5 {[%emt 0:04:09]} 13. Bf4 {[%emt 0:02:44] Hoping for Bxd6.} Nf8 $1 {[%emt 0:17:04]} (13... Bxf4 14. Nxf4 Qd8 (14... Rxe1+ $2 15. Rxe1 g6 16. Nxg6 $18) 15. Bc4 $16 (15. Nxh5 cxd4 16. cxd4 Nf8 $18)) 14. Bxd6 {[%emt 0:00:50]} Qxd6 {[%emt 0:00:06]} 15. Ng3 {[%emt 0:05:05]} Rxe1+ {[%emt 0:07:08]} 16. Rxe1 {[%emt 0:00:03]} h4 {[%emt 0:06:40]} 17. Ne4 {[%emt 0:07:36][%csl LRc5,LRd6]} Qe7 {[%emt 0:02:56] [#] And now ...f5 would win.} 18. Qd1 {[%emt 0:12:49]} (18. Nxc5 $2 Qxe1+ 19. Bf1 Ng6 $19) (18. dxc5 f5 19. Qd2 fxe4 20. Bxe4 Be6 $19 (20... Qxc5 $2 21. Qd8 $19)) 18... cxd4 {[%emt 0:02:44]} 19. cxd4 {[%emt 0:00:07]} Qb4 {[%emt 0:01:37][%csl LRb2,LRd4]} 20. Qd2 {[%emt 0:35:45]} (20. Nc3 $11 Be6 21. d5) 20... Qxd2 {[%emt 0:07:27]} (20... Qxd4 {looks sharper.} 21. Nd6 f5 22. Nb5 Qd8) 21. Nxd2 {[%emt 0:00:02]} Be6 {[%emt 0:00:32]} 22. a3 {[%emt 0:13:29]} Rd8 {[%emt 0:02:24]} 23. Nf3 {[%emt 0:00:10]} g5 {[%emt 0:00:41]} 24. Be4 {[%emt 0:00:45]} b6 {[%emt 0:01:41] [#]} (24... Rd7 $5) 25. d5 $1 {[%emt 0:00:57]} Bc8 {[%emt 0:01:24]} (25... Bxd5 $2 26. Rd1 $18) 26. Nd4 {[%emt 0:01:05]} f5 {[%emt 0:04:26]} 27. Bf3 {[%emt 0:00:03] Nc6 would now be deadly.} Bd7 {[%emt 0:03:31]} 28. Nc6 {[%emt 0:02:01]} Bxc6 {[%emt 0:00:20]} 29. dxc6 $14 {[%emt 0:00:03][%mdl 4096] Endgame. KRB-KRN} Ne6 {[%emt 0:00:22]} 30. Kf1 {[%emt 0:02:30]} Kg7 {[%emt 0:00:56]} 31. Rc1 {[%emt 0:01:29]} Kf6 {[%emt 0:02:16]} 32. Ke2 {[%emt 0:00:33]} (32. c7 Rc8 33. b4 (33. Bb7 Rxc7 34. Rxc7 Nxc7 $17) 33... Rxc7 34. Rxc7 Nxc7) 32... Nf4+ {[%emt 0:01:07]} 33. Kf1 {[%emt 0:00:05]} Ne6 {[%emt 0:00:30]} 34. Rc4 {[%emt 0:00:44]} (34. c7 Rc8 35. Kg1 (35. Bb7 $2 Rxc7 36. Rxc7 Nxc7 $17) 35... Rxc7 36. Rxc7 Nxc7 $17) 34... Ke5 {[%emt 0:00:34]} 35. Ra4 {[%emt 0:02:12]} (35. c7 Rc8 36. g3 (36. Bb7 $2 Rxc7 37. f4+ Kd6 $19) (36. Bh5 $2 Kf6 $19) 36... Rxc7 37. Rxc7 Nxc7 $15) 35... a5 {[%emt 0:00:54]} 36. Rc4 {[%emt 0:00:10]} Kd6 {[%emt 0:02:28]} 37. c7 {[%emt 0:01:15]} Rc8 {[%emt 0:01:03]} 38. Rc6+ {[%emt 0:00:04]} Ke7 {[%emt 0:01:05]} 39. Rxb6 {[%emt 0:00:07]} Rxc7 {[%emt 0:00:04]} 40. b4 {[%emt 0:01:03]} (40. Rb7 $11) 40... Nd4 {[%emt 0:06:48]} (40... Rc1+ $17 41. Ke2 Ra1 42. bxa5 Rxa3) 41. Bd1 {[%emt 0:09:41]} axb4 {[%emt 0:04:13]} 42. Rxb4 {[%emt 0:01:52]} Ne6 {[%emt 0:00:44]} 43. a4 {[%emt 0:03:04]} Nf4 {[%emt 0:00:38]} 44. Rb1 {[%emt 0:00:41] Inhibits Rc1.} Rc5 {[%emt 0:00:46]} 45. Ra1 {[%emt 0:02:28]} Ra5 {[%emt 0:02:21]} 46. Bf3 {[%emt 0:05:40]} Kd6 {[%emt 0:00:27]} 47. Ke1 {[%emt 0:00:10]} Nd3+ {[%emt 0:00:51]} 48. Kd2 {[%emt 0:01:14]} Nc5 {[%emt 0:03:57]} 49. Bd1 {[%emt 0:00:05] Prevents Nb3+} Ne4+ {[%emt 0:00:44]} 50. Ke3 {[%emt 0:00:15]} Ke5 {[%emt 0:00:41]} 51. Bc2 {[%emt 0:01:01]} f4+ {[%emt 0:00:27]} 52. Kf3 {[%emt 0:00:27]} f5 {[%emt 0:00:05]} 53. Re1 {[%emt 0:00:35][%cal Rc2e4]} Rc5 $1 {[%emt 0:04:18]} 54. Bxe4 {[%emt 0:00:03]} fxe4+ {[%emt 0:01:58]} 55. Rxe4+ $11 {[%emt 0:00:03] KR-KR} Kf5 {[%emt 0:00:14] ( -> ...Rc3+)} 56. Rb4 {[%emt 0:01:18]} Rc3+ {[%emt 0:00:19]} 57. Ke2 {[%emt 0:00:10] White wants to play Rb5+.} Rc2+ {[%emt 0:00:15]} 58. Ke1 {[%emt 0:02:46] Threatening Rb5+.} Ra2 {[%emt 0:02:41]} (58... g4 $11) 59. Rb5+ $16 {[%emt 0:00:06]} Ke4 $2 {[%emt 0:01:15][%mdl 8192] Loses the game.} (59... Kf6 $16) 60. f3+ $18 {[%emt 0:02:42]} ({Less strong is} 60. Rxg5 Ra1+ 61. Kd2 Ra2+ 62. Kc1 Rxa4 $11) 60... Ke3 {[%emt 0:00:38]} 61. Re5+ {[%emt 0:00:06]} (61. Rxg5 $2 Ra1#) 61... Kd3 {[%emt 0:00:04]} 62. Rxg5 {[%emt 0:00:31]} Rxa4 {[%emt 0:00:14]} 63. Re5 {[%emt 0:01:22]} (63. Rd5+ $142 Rd4 64. Rh5) 63... Ra2 {[%emt 0:03:27]} 64. Kf1 {[%emt 0:00:06] aiming for Kg1.} Ra4 {[%emt 0:03:03]} (64... Ra6 $142 65. Rh5 Ra1+ 66. Kf2 Kd4) 65. Kg1 {[%emt 0:00:19]} Rb4 {[%emt 0:01:38]} 66. Kh2 {[%emt 0:00:38]} Ra4 {[%emt 0:00:16]} 67. Rh5 {[%emt 0:00:23]} Ke2 {[%emt 0:00:20]} 68. Rxh4 {[%emt 0:00:06]} Kf1 {[%emt 0:00:06]} 69. Rg4 {[%emt 0:00:27]} Rb4 {[%emt 0:00:47]} 70. h4 {[%emt 0:00:15]} Ra4 {[%emt 0:00:37]} 71. Kh3 {[%emt 0:01:11] Threatening mate with h5.} Kf2 {[%emt 0:00:18]} 72. h5 {[%emt 0:07:29]} Ra1 {[%emt 0:00:32]} 73. Kh4 {[%emt 0:00:00]} Ra6 {[%emt 0:00:45]} 74. Kg5 {[%emt 0:00:00]} Ra5+ {[%emt 0:00:09]} 75. Kh6 {[%emt 0:00:00][%cal Og4g5] Threatens to win with Rg5!} Ra6+ {[%emt 0:00:05]} 76. Rg6 {[%emt 0:00:00]} Ra5 {[%emt 0:00:49]} 77. Rg5 {[%emt 0:00:00]} Ra6+ {[%emt 0:01:37]} 78. Kh7 {[%emt 0:00:08] White threatens h6 and mate.} Ra7+ {[%emt 0:00:11]} 79. Rg7 {[%emt 0:00:57]} Rxg7+ {[%emt 0:00:12]} 80. Kxg7 {[%emt 0:00:05] White mates.} Kxg2 {[%emt 0:00:05]} 81. h6 {[%emt 0:00:05]} Kxf3 {[%emt 0:00:12] KP-KP} 82. h7 {[%emt 0:00:04]} Kg2 {[%emt 0:00:07]} 83. h8=Q {[%emt 0:00:06]} ({Inferior is} 83. h8=R f3 $11) 83... f3 {[%emt 0:00:03]} 84. Qa8 {[%emt 0:00:10]} Kf2 {[%emt 0:02:00]} 85. Kf6 {[%emt 0:00:18]} Ke2 {[%emt 0:00:05]} 86. Qe4+ {[%emt 0:00:09] Weighted Error Value: White=0.08 (flawless) /Black=0.12 (very precise) .  Loses game:     	---       	Black=1      Mistake:       	White=2     	Black=3      Inaccurate:     	---       	Black=2      OK:         	White=26    	Black=15     Best:        	White=3     	Black=4      Strong:       	---       	Black=2} 1-0

[Event "XTX Markets London Masters 2024"]
[Site "London"]
[Date "2024.11.30"]
[Round "3.31"]
[White "Arakhamia-Grant, Ketevan"]
[Black "Hanache, Kai"]
[Result "0-1"]
[ECO "B52"]
[WhiteElo "2265"]
[BlackElo "2080"]
[Annotator "RC"]
[PlyCount "126"]
[EventDate "2024.11.28"]
[EventType "swiss"]
[EventCountry "ENG"]
[SourceTitle "playchess.com"]
[Source "ChessBase"]
[SourceQuality "1"]
[TimeControl "40/5400+30:1800+30"]

1. e4 {[%emt 0:00:03]} c5 {[%emt 0:00:14]} 2. Nf3 {[%emt 0:00:28]} d6 {[%emt 0:00:34]} 3. Bb5+ {[%emt 0:03:05]} Bd7 {[%emt 0:00:32]} 4. Bxd7+ {[%emt 0:00:12]} Nxd7 {[%emt 0:00:09]} 5. O-O {[%emt 0:00:49]} Ngf6 {[%emt 0:00:22]} 6. Re1 {[%emt 0:01:03]} e6 {[%emt 0:00:42]} 7. c3 {[%emt 0:00:40]} Be7 {[%emt 0:00:07]} 8. d4 {[%emt 0:00:38]} O-O {[%emt 0:00:11]} 9. Nbd2 {[%emt 0:04:44]} Rc8 {[%emt 0:01:29]} 10. e5 {[%emt 0:03:42]} Ne8 {[%emt 0:00:41]} 11. Ne4 {[%emt 0:03:00]} cxd4 {[%emt 0:01:50]} 12. cxd4 {[%emt 0:00:38]} dxe5 {[%emt 0:02:06]} 13. dxe5 {[%emt 0:00:28]} Nc5 {[%emt 0:02:35]} 14. Qe2 {[%emt 0:18:03]} Nc7 {[%emt 0:02:53]} 15. Rd1 {[%emt 0:15:48]} Nd5 {[%emt 0:01:23]} 16. Ng3 {[%emt 0:00:17]} Qb6 {[%emt 0:02:22]} 17. Nd4 {[%emt 0:15:59]} Rfd8 {[%emt 0:07:23]} 18. Qg4 {[%emt 0:00:21]} f5 {[%emt 0:01:36]} 19. exf6 {[%emt 0:02:16]} Nxf6 {[%emt 0:00:10]} 20. Qe2 {[%emt 0:00:36]} Rd5 {[%emt 0:04:37]} 21. Be3 {[%emt 0:04:58]} Rcd8 {[%emt 0:01:46]} 22. Nb3 {[%emt 0:13:38]} Rxd1+ {[%emt 0:07:00]} 23. Rxd1 {[%emt 0:00:05]} Rxd1+ {[%emt 0:00:04]} 24. Qxd1 {[%emt 0:00:04]} Qc6 {[%emt 0:00:22]} 25. Bxc5 {[%emt 0:06:03]} Bxc5 {[%emt 0:00:36]} 26. Qc2 {[%emt 0:00:15]} Bb6 {[%emt 0:01:41]} 27. Qxc6 {[%emt 0:00:46]} bxc6 {[%emt 0:00:26]} 28. h3 {[%emt 0:02:33]} Kf7 {[%emt 0:01:32]} 29. Kf1 {[%emt 0:00:51]} Bc7 {[%emt 0:00:01]} 30. Ne2 {[%emt 0:01:38]} Bb6 {[%emt 0:01:00]} 31. Nd2 {[%emt 0:01:05]} e5 {[%emt 0:01:05]} 32. Nc4 {[%emt 0:00:50]} Bc7 {[%emt 0:00:01]} 33. Nc3 {[%emt 0:00:28]} Ke6 {[%emt 0:00:35]} 34. Ke2 {[%emt 0:00:31]} Nd5 {[%emt 0:00:02]} 35. Ne4 {[%emt 0:00:30]} Nf4+ {[%emt 0:00:03]} 36. Kf3 {[%emt 0:00:24]} Kd5 {[%emt 0:00:19]} 37. b3 {[%emt 0:00:44]} Nxg2 {[%emt 0:01:53]} 38. Nc3+ {[%emt 0:00:35]} Kd4 {[%emt 0:00:06]} 39. Ne2+ {[%emt 0:00:35]} Kd3 {[%emt 0:00:01]} 40. Nb2+ {[%emt 0:00:34]} Kc2 {[%emt 0:01:04]} 41. Nc4 {[%emt 0:01:17]} Nf4 {[%emt 0:01:18]} 42. Nxf4 {[%emt 0:15:38]} exf4 {[%emt 0:00:09]} 43. Ke2 {[%emt 0:04:43]} Kb1 {[%emt 0:01:38]} 44. a3 {[%emt 0:01:31]} Ka2 {[%emt 0:00:50]} 45. b4 {[%emt 0:00:45]} Kb3 {[%emt 0:00:08]} 46. Kd3 {[%emt 0:00:10]} f3 {[%emt 0:08:43]} 47. Nd2+ {[%emt 0:02:14]} Kxa3 {[%emt 0:00:25]} 48. Kc4 {[%emt 0:00:19]} Bb6 {[%emt 0:00:48]} 49. Nxf3 {[%emt 0:00:22]} Bxf2 {[%emt 0:00:05]} 50. Ne5 {[%emt 0:00:19]} h5 {[%emt 0:01:17]} 51. Nxc6 {[%emt 0:01:00]} g5 {[%emt 0:00:16]} 52. Ne5 {[%emt 0:02:36]} Bg3 {[%emt 0:00:20]} 53. Nf3 {[%emt 0:03:13]} g4 {[%emt 0:02:12]} 54. hxg4 {[%emt 0:00:21]} hxg4 {[%emt 0:00:04]} 55. Nd4 {[%emt 0:00:26]} Bd6 {[%emt 0:13:37]} 56. Nc2+ {[%emt 0:02:54]} Kb2 {[%emt 0:01:16]} 57. Ne3 {[%emt 0:00:08]} g3 {[%emt 0:00:21]} 58. b5 {[%emt 0:00:44]} Kc1 {[%emt 0:00:30]} 59. Kd5 {[%emt 0:00:45]} Kd2 {[%emt 0:00:53]} 60. Ng2 {[%emt 0:00:32]} Bc7 {[%emt 0:00:13]} 61. Ke4 {[%emt 0:00:30]} Ke2 {[%emt 0:00:18]} 62. Nh4 {[%emt 0:00:33]} Kf2 {[%emt 0:00:13]} 63. Kd5 {[%emt 0:00:31]} Bd8 {[%emt 0:00:07]} 0-1

[Event "XTX Markets London Masters 2024"]
[Site "London"]
[Date "2024.11.30"]
[Round "3.33"]
[White "Jermy, Jaden"]
[Black "Smith, Olivia"]
[Result "0-1"]
[ECO "E63"]
[WhiteElo "2011"]
[BlackElo "2129"]
[Annotator "NA RC"]
[PlyCount "70"]
[EventDate "2024.11.28"]
[EventType "swiss"]
[EventCountry "ENG"]
[SourceTitle "playchess.com"]
[Source "ChessBase"]
[SourceQuality "1"]
[TimeControl "40/5400+30:1800+30"]

1. d4 {[%emt 0:04:08]} Nf6 {[%emt 0:05:09]} 2. Nf3 {[%emt 0:00:22]} g6 {[%emt 0:00:10]} 3. c4 {[%emt 0:00:40]} Bg7 {[%emt 0:00:06]} 4. g3 {[%emt 0:00:04]} d6 {[%emt 0:01:02]} 5. Bg2 {[%emt 0:00:10]} O-O {[%emt 0:00:31]} 6. O-O {[%emt 0:00:11]} Nc6 {[%emt 0:02:46]} 7. Nc3 {[%emt 0:00:55]} a6 {[%emt 0:00:44]} 8. h3 {[%emt 0:02:00]} Rb8 {[%emt 0:01:18]} 9. a4 {[%emt 0:02:40]} a5 {[%emt 0:01:33]} 10. e4 {[%emt 0:01:32]} Nd7 {[%emt 0:12:13]} 11. Be3 {[%emt 0:03:14]} e5 {[%emt 0:01:28]} 12. d5 {[%emt 0:04:02]} Nb4 {[%emt 0:00:29]} 13. Ne1 {[%emt 0:03:42]} f5 {[%emt 0:03:49]} 14. f3 {[%emt 0:03:03]} f4 {[%emt 0:02:55]} 15. Bf2 {[%emt 0:03:28]} fxg3 {[%emt 0:01:55]} 16. Bxg3 {[%emt 0:00:03]} Bh6 {[%emt 0:01:03]} 17. Ne2 {[%emt 0:03:07]} Be3+ {[%emt 0:04:03]} 18. Kh2 {[%emt 0:01:00]} g5 {[%emt 0:06:32]} 19. Nd3 {[%emt 0:05:54]} Nxd3 {[%emt 0:03:34]} 20. Qxd3 {[%emt 0:00:02]} Bf4 {[%emt 0:00:26]} 21. Nxf4 {[%emt 0:00:56]} gxf4 {[%emt 0:00:09]} 22. Bf2 {[%emt 0:00:15]} b6 {[%emt 0:02:42]} 23. Rh1 {[%emt 0:06:33]} Nc5 {[%emt 0:02:24]} 24. Qc2 {[%emt 0:00:31]} Bd7 {[%emt 0:01:43]} 25. Kg1 {[%emt 0:00:56]} Qe8 {[%emt 0:02:12]} 26. b3 {[%emt 0:01:25]} Qh5 {[%emt 0:02:35]} 27. Kf1 {[%emt 0:01:02]} Rf7 {[%emt 0:01:30]} 28. Ke2 {[%emt 0:00:52]} Nxe4 {[%emt 0:03:43]} 29. Ke1 {[%emt 0:05:00]} Nc5 {[%emt 0:02:37]} 30. Bxc5 {[%emt 0:00:32]} bxc5 {[%emt 0:00:24]} 31. Kd2 {[%emt 0:01:34]} Rg7 {[%emt 0:05:05]} 32. Rag1 {[%emt 0:00:16]} Rg3 {[%emt 0:01:18]} 33. Qc3 {[%emt 0:03:38]} Qg6 {[%emt 0:03:32]} 34. Rh2 {[%emt 0:01:55]} e4 {[%emt 0:00:51]} 35. Qxa5 {[%emt 0:01:15]} e3+ {[%emt 0:01:02]} 0-1

[Event "XTX Markets London Masters 2024"]
[Site "London"]
[Date "2024.11.30"]
[Round "3.34"]
[White "Banerjee, Supratit"]
[Black "Venkataramanan, T.S."]
[Result "1/2-1/2"]
[ECO "C45"]
[WhiteElo "2141"]
[BlackElo "2227"]
[Annotator "RC"]
[PlyCount "67"]
[EventDate "2024.11.28"]
[EventType "swiss"]
[EventCountry "ENG"]
[SourceTitle "playchess.com"]
[Source "ChessBase"]
[SourceQuality "1"]
[TimeControl "40/5400+30:1800+30"]

1. e4 {[%emt 0:00:05]} e5 {[%emt 0:00:23]} 2. Nf3 {[%emt 0:00:07]} Nc6 {[%emt 0:00:09]} 3. d4 {[%emt 0:00:06]} exd4 {[%emt 0:00:21]} 4. Nxd4 {[%emt 0:00:09]} Bc5 {[%emt 0:00:21]} 5. Be3 {[%emt 0:00:07]} Qf6 {[%emt 0:00:38]} 6. c3 {[%emt 0:00:08]} Nge7 {[%emt 0:02:03]} 7. Bc4 {[%emt 0:00:15]} O-O {[%emt 0:07:06]} 8. O-O {[%emt 0:02:46]} Qg6 {[%emt 0:09:13]} 9. Nd2 {[%emt 0:11:58]} d6 {[%emt 0:06:13]} 10. f4 {[%emt 0:03:26]} Kh8 {[%emt 0:07:00]} 11. f5 {[%emt 0:02:53]} Qf6 {[%emt 0:00:11]} 12. N2f3 {[%emt 0:01:35]} Ne5 {[%emt 0:02:00]} 13. Nxe5 {[%emt 0:03:40]} dxe5 {[%emt 0:00:52]} 14. Nc2 {[%emt 0:00:13]} Qc6 {[%emt 0:04:23]} 15. Qf3 {[%emt 0:07:26]} b5 {[%emt 0:03:45]} 16. Bb3 {[%emt 0:04:54]} Bb7 {[%emt 0:01:22]} 17. Rae1 {[%emt 0:07:27]} Rad8 {[%emt 0:06:04]} 18. f6 {[%emt 0:01:49]} gxf6 {[%emt 0:01:15]} 19. Qxf6+ {[%emt 0:01:48]} Qxf6 {[%emt 0:00:57]} 20. Rxf6 {[%emt 0:02:12]} Bxe3+ {[%emt 0:01:11]} 21. Nxe3 {[%emt 0:00:14]} Rd2 {[%emt 0:07:58]} 22. Ng4 {[%emt 0:01:26]} Ng6 {[%emt 0:04:05]} 23. Rf2 {[%emt 0:01:53]} Rxf2 {[%emt 0:03:15]} 24. Nxf2 {[%emt 0:00:13]} Kg7 {[%emt 0:05:17]} 25. Rd1 {[%emt 0:02:05]} Bc6 {[%emt 0:03:54]} 26. Bd5 {[%emt 0:01:57]} Bd7 {[%emt 0:02:47]} 27. g3 {[%emt 0:00:34]} f5 {[%emt 0:02:44]} 28. exf5 {[%emt 0:00:47]} Bxf5 {[%emt 0:00:23]} 29. Be4 {[%emt 0:00:23]} Be6 {[%emt 0:00:40]} 30. b3 {[%emt 0:00:15]} a5 {[%emt 0:01:55]} 31. Bxg6 {[%emt 0:01:39]} hxg6 {[%emt 0:01:49]} 32. Re1 {[%emt 0:00:05]} Kf6 {[%emt 0:04:06]} 33. Rf1 {[%emt 0:03:21]} Ke7 {[%emt 0:01:03]} 34. Re1 {[%emt 0:00:07]} 1/2-1/2